Cogmind - Beta 9 @@@ ROGUE MODE // 2019.10.22 @ 19:51:08 Player: Enzo Result: Destroyed by Y-45 Defender with Heavy Assault Rifle Performance ------------- Evolutions (1) 500 Regions Visited (2) 400 Robots Destroyed (19) 95 Value Destroyed (365) 365 Prototype IDs (0) 0 Alien Tech Used (0) 0 Bonus (0) 0 TOTAL SCORE: 1360 Bonus ------- None Cogmind --------- Core Integrity 0/400 Matter 276/300 Energy 89/100 System Corruption 0% Temperature Cool (0) Location -9/Materials Parts ------- Power (1) Propulsion (3) Utility (3) Signal Interpreter Propulsion Shielding Weapon (2) Light Assault Rifle Inventory (4) Heat Sink Visual Processing Unit ECM Suite Peak State ------------ Power Light Ion Engine Propulsion Hover Unit Hover Unit Utility Small Storage Unit Signal Interpreter Propulsion Shielding Weapon Medium Laser Light Cannon Inventory Heat Sink Visual Processing Unit ECM Suite [Rating: 8] Favorites ----------- Power Light Ion Engine Engine Light Ion Engine Propulsion Wheel Wheel Wheel Hover Unit Hover Unit Utility Small Storage Unit Device ECM Suite Storage Small Storage Unit Processor Signal Interpreter Protection Propulsion Shielding Weapon Light Cannon Energy Gun Medium Laser Ballistic Gun Light Assault Rifle Ballistic Cannon Light Cannon Build | -11 -10 -9 ------- Run | Scr Mat Mat Slots Evolved 2 | . . 2 Power . | . . . Propulsion 1 | . . 1 Utility 1 | . . 1 Weapon . | . . . Parts Attached 22 | 6 12 4 Power 3 | 1 2 . Engine 3 | 1 2 . Core . | . . . Reactor . | . . . Propulsion 5 | 2 3 . Treads . | . . . Leg . | . . . Wheel 3 | 2 1 . Hover 2 | . 2 . Flight . | . . . Utility 5 | 1 3 1 Device 2 | . 2 . Storage 1 | 1 . . Processor 1 | . 1 . Hackware . | . . . Protection 1 | . . 1 Artifact . | . . . Weapon 9 | 2 4 3 Energy Gun 2 | 1 1 . Energy Cannon . | . . . Ballistic Gun 4 | 1 1 2 Ballistic Cannon 3 | . 2 1 Launcher . | . . . Special Weapon . | . . . Impact Weapon . | . . . Slashing Weapon . | . . . Piercing Weapon . | . . . Special Melee Weapon . | . . . Unidentified Prototypes . | . . . Parts Lost 11 | . 4 7 Power 3 | . 2 1 Propulsion 3 | . 1 2 Utility . | . . . Weapon 5 | . 1 4 Highest Loss Streak 6 | . 2 6 Average Slot Usage (%) 90 | . 97 75 Engine 11 | . 12 9 Wheel 17 | . 26 . Hover 7 | . 1 19 Device 9 | . 13 . Storage 12 | . 14 9 Processor 3 | . . 11 Protection 3 | . . 11 Energy Gun 11 | . 12 9 Ballistic Gun 1 | . 2 . Ballistic Cannon 10 | . 13 5 Naked Turns . | . . . Heaviest Build 13 | 10 13 13 Greatest Support 26 | 20 26 12 Greatest Overweight (x) 1 | . 1 1 Average Overweight (x) . | . . . Largest Inventory Capacity 6 | 6 6 6 Average Capacity 5 | 4 6 5 Most Carried 6 | . 6 3 Average Carried 1 | . . 3 Final Capacity 4 | . . 4 Final Carried 3 | . . 3 Class Distribution -------------------- 100% | Mutant Dominant Class ---------------- Mutant | -10/Materials Mutant | -9/Materials Resources | -11 -10 -9 ----------- Run | Scr Mat Mat Matter Collected 530 | 164 320 46 Remotely . | . . . Salvage Created 473 | . 362 111 Parts 30 | . 22 8 Haulers Intercepted 1 | . 1 . Recyclers Shooed 1 | . 1 . Parts Field Recycled . | . . . Retrieved Matter . | . . . Parts Self-Destructed . | . . . Prevented . | . . . Kills | -11 -10 -9 ------- Run | Scr Mat Mat Combat Hostiles Destroyed 15 | . 8 7 Guns 7 | . 1 6 Cannons 7 | . 6 1 AOE 1 | . 1 . Classes Destroyed 6 | . 5 1 Hauler 1 | . 1 . Recycler 2 | . 2 . Watcher 1 | . 1 . Swarmer 9 | . 3 6 Grunt 5 | . 5 . Sentry 1 | . . 1 Best Kill Streak 4 | . 4 4 Combat Bots Only 4 | . 3 4 Max Kills in Single Turn 2 | . 2 1 Gunslinging . | . . . Exploded 1 | . 1 . Melee . | . . . Uniques/NPCs Destroyed . | . . . Combat | -11 -10 -9 -------- Run | Scr Mat Mat Damage Taken 1269 | . 440 829 Core 513 | . 98 415 Absorbed by Shields . | . . . Core Remaining (%) 80 | 100 60 . Volleys Fired 52 | . 35 17 Largest 2 | . 2 2 Hottest 85 | . 85 85 Shots Fired 89 | . 70 19 Gun 46 | . 35 11 Cannon 43 | . 35 8 Launcher . | . . . Special . | . . . Kinetic 46 | . 35 11 Thermal 20 | . 12 8 Explosive . | . . . Electromagnetic 23 | . 23 . Robot Hit Streak 15 | . 15 6 Robot Miss Streak 6 | . 6 1 Penetration Max . | . . . Secondary Targets . | . . . Shots Hit Robots 56 | . 42 14 Core Hits 25 | . 16 9 Critical Hits . | . . . Critical Kills . | . . . Critical Parts Destroyed . | . . . Melee Attacks . | . . . Impact . | . . . Slashing . | . . . Piercing . | . . . Sneak Attacks . | . . . Combat Hostiles . | . . . Follow-up Attacks . | . . . Damage Inflicted 1148 | . 891 257 Guns 410 | . 284 126 Cannons 409 | . 281 128 Explosions 326 | . 326 . Melee . | . . . Ramming 3 | . . 3 Kinetic 434 | . 281 153 Thermal 277 | . 176 101 Explosive 291 | . 291 . Electromagnetic 143 | . 143 . Impact . | . . . Slashing . | . . . Piercing . | . . . Highest Corruption . | . . . Average Corruption . | . . . Corruption Purged . | . . . Overload Shots . | . . . Overflow Damage 129 | . 128 1 Projectiles 1 | . . 1 Explosions 128 | . 128 . Melee . | . . . Knockbacks 7 | . 5 2 Impact . | . . . Kinetic 7 | . 5 2 Secondary . | . . . Self-Inflicted Damage 88 | . 87 1 Shots 1 | . 1 . Rammed 2 | . . 2 Targets Rammed 2 | . . 2 Kicked . | . . . Crushed . | . . . Highest Temperature 164 | . 164 85 Average Temperature 72 | . 84 37 Received Heat Transfer 192 | . 120 72 Siege Activations . | . . . Robots Corrupted . | . . . Combat Hostiles . | . . . Parts Fried . | . . . Impact Corruptions . | . . . Robots Melted . | . . . Combat Hostiles . | . . . Parts Melted . | . . . Heat Transferred 753 | . 457 296 Parts Sabotaged . | . . . Parts Stolen . | . . . Parts Stripped . | . . . Power Chain Reactions 1 | . 1 . Missiles Intercepted . | . . . Alert | -11 -10 -9 ------- Run | Scr Mat Mat Peak Influence 194 | . 194 155 Average Influence 55 | . 72 29 Maximum Alert Level . | . . . Low Security (%) 100 | . . . Level 1 . | . . . Level 2 . | . . . Level 3 . | . . . Level 4 . | . . . Level 5 . | . . . High Security . | . . . Max Security . | . . . Squads Dispatched 4 | . 2 2 Investigation 1 | . . 1 Extermination . | . . . Reinforcement 3 | . 2 1 Assault . | . . . Garrison . | . . . Intercept . | . . . Construction Impeded . | . . . Haulers Reinforced . | . . . Stealth | -11 -10 -9 --------- Run | Scr Mat Mat Distress Signals 1 | . . 1 Communications Jammed . | . . . Distress Signals . | . . . Times Spotted 33 | . 16 17 Peak Tracking Total 12 | . 4 12 Tactical Retreats 3 | . 3 . Traps | -11 -10 -9 ------- Run | Scr Mat Mat Traps Triggered 1 | . . 1 Indirectly . | . . . Trap Hack Attempts . | . . . Triggered . | . . . Disarmed . | . . . Reprogrammed . | . . . Reused . | . . . Traps Extracted . | . . . Installed . | . . . Triggered . | . . . Machines | -11 -10 -9 ---------- Run | Scr Mat Mat Machines Disabled 3 | . 2 1 Max in Single Turn 2 | . 2 1 Machines Sabotaged . | . . . Garrisons Compromised . | . . . Overloaded Fab Kills . | . . . Fab Network Shutdowns . | . . . Hacking | -11 -10 -9 --------- Run | Scr Mat Mat Machines Accessed . | . . . Terminals . | . . . Fabricators . | . . . Repair Stations . | . . . Recycling Units . | . . . Scanalyzers . | . . . Garrison Access . | . . . Total Hacks . | . . . Successful . | . . . Failed . | . . . Catastrophic . | . . . Database Lockouts . | . . . Manual . | . . . Terminals . | . . . Fabricators . | . . . Repair Stations . | . . . Recycling Units . | . . . Scanalyzers . | . . . Garrison Access . | . . . Terminal Hacks . | . . . Fabricator Hacks . | . . . Repair Station Hacks . | . . . Recycling Unit Hacks . | . . . Scanalyzer . | . . . Garrison Access Hacks . | . . . Unauthorized Hacks . | . . . Terminals . | . . . Fabricators . | . . . Repair Stations . | . . . Recycling Units . | . . . Scanalyzers . | . . . Garrison Access . | . . . Data Cores Recovered . | . . . Used . | . . . Hacking Detections . | . . . Full Trace Events . | . . . Feedback Events . | . . . Feedback Blocked . | . . . Robot Schematics Acquired . | . . . Robots Built . | . . . Matter . | . . . Time . | . . . Total Robot Build Rating . | . . . Part Schematics Acquired . | . . . Parts Built . | . . . Matter . | . . . Time . | . . . Total Part Build Rating . | . . . Parts Repaired . | . . . Time . | . . . Parts Recycled . | . . . Recycled Matter . | . . . Retrieved Matter . | . . . Retrieved Components . | . . . Parts Scanalyzed . | . . . Part Schematics Acquired . | . . . Parts Damaged . | . . . Bothacking | -11 -10 -9 ------------ Run | Scr Mat Mat Used RIF Installer . | . . . Robots Hacked . | . . . Non-combat . | . . . Combat . | . . . Robot Hacks Applied . | . . . Relay Couplers Released . | . . . Robots Rewired . | . . . Allies Hacked . | . . . Hacks Repelled . | . . . Allies | -11 -10 -9 -------- Run | Scr Mat Mat Total Allies . | . . . Largest Group . | . . . Highest-Rated Group . | . . . Highest-Rated Ally . | . . . Total Orders . | . . . Ally Attacks . | . . . Total Damage . | . . . Kills . | . . . Allies Corrupted . | . . . Allies Melted . | . . . Intel | -11 -10 -9 ------- Run | Scr Mat Mat Robot Analysis Total . | . . . Derelict Logs Recovered . | . . . Drone Launches . | . . . Drone Recoveries . | . . . Exploration | -11 -10 -9 ------------- Run | Scr Mat Mat Turns Passed 657 | 38 419 200 Spaces Moved 413 | 38 273 102 Core 14 | 5 . 9 Treads . | . . . Legs . | . . . Wheels 288 | 33 255 . Hover 111 | . 18 93 Flight . | . . . Fastest Speed 50 | 50 56 50 Average Speed 85 | 76 85 92 Slowest Speed 120 | 80 116 120 Overloaded Moves . | . . . Propulsion Burnouts . | . . . Robots Hopped . | . . . Cave-ins Triggered . | . . . Exploration Rate (%) 20 | 4 41 16 Regions Visited 2 Branch Regions . Pre-discovered Areas . | . . . Known Exits Taken 1 | . 1 . Unknown Exits Taken 1 | 1 . . Scrap Searched . | . . . Spaces Dug . | . . . Terrain Destroyed 38 | . 38 . Melee . | . . . Projectile . | . . . AOE 38 | . 38 . Actions | -11 -10 -9 --------- Run | Scr Mat Mat Total 619 | 43 387 189 Wait 120 | . 57 63 Move 411 | 37 272 102 Hop . | . . . Pick Up 5 | . 5 . Fast Attach 18 | 6 9 3 Attach 3 | . 2 1 Detach 1 | . 1 . Swap 1 | . 1 . Drop 6 | . 5 1 Fire 52 | . 35 17 Melee . | . . . Ram 2 | . . 2 Kick . | . . . Crush . | . . . Escape Stasis . | . . . Rewire . | . . . Trap . | . . . Miscellaneous . | . . . Route ------- -11/Scrapyard -10/Materials (discovered 2 exits: *Mat / [*Min]) -9/Materials History --------- Turn | Location | Event 17 | -11/Scrapyard | Discovered new exit (range 16) 39 | -11/Scrapyard | Entered Materials 203 | -10/Materials | Discovered new exit (range 6) 316 | -10/Materials | Build established: Mutant 448 | -10/Materials | Discovered new exit (range 10) 458 | -10/Materials | Identified exit to Materials 458 | -10/Materials | Entered another Materials area 458 | -9/Materials | Evolved 2 slots: Propulsion x1, Utility x1 647 | -9/Materials | Core integrity fell below 50% 652 | -9/Materials | Core integrity fell below 20% 658 | -9/Materials | Destroyed by Y-45 Defender with Heavy Assault Rifle Last Messages --------------- 00638_ Door malfunctions. 00639_ S-10 Pest destroyed. 00640_ S-10 Pest knocked back. 00644_ S-10 Pest destroyed. 00645_ Imp. Light Cannon destroyed. 00647_ Slammed into S-10 Pest. 00649_ K-01 Serf collects debris. 00650_ Acquired Lgt. Assault Rifle. 00651_ S-10 Pest destroyed. 00652_ K-01 Serf collects debris. 00653_ S-10 Pest destroyed. 00653_ Lgt. Assault Rifle destroyed. 00654_ Acquired 17 matter. 00655_ O-16 Technician uses terminal to summon reinforcements. 00655_ ALERT: Hostiles spotted, dispatching reinforcements to Terminal M007. 00655_ O-16 Technician locks terminal. 00655_ K-01 Serf collects debris. 00656_ Acquired Lgt. Assault Rifle. 00657_ S-10 Pest destroyed. Map ----- +----------------------------------------------------+ | ???????????????????????????????????????????? | | ???????????????????????????????????????????? | | ???????????????????????????????????????????? | | ???????????????????????????????????????????? | | ???????????????????????????????????????????? | | ???????????????????????????????????????????? | | ???????????????????????????????????????????? | | ???????????????????????????????????????????? | | ???????????????????????????????????????????? | | ???????????????????????????????????????????? | | ???????????????????????????????????????????? | | ???????????????????????????????????????????? | | ???????????????????????????????????????????? | | ???????????????????????????????????????????? | | ???????????????????????????????????????????? | | ???????????????????????????????????????????? | | ???????????????????????????????????????????? | | ?????????? ??????????????????????????????? | | ?????????# #?????????????????????????????? | | ?????????# #?????????????????????????????? | | ?????????# #?????????????????????????????? | | ?????????# #?????????????????????????????? | | ?????????# #?????????????????????????????? | | ?????????# #???????????##????????????????? | | ?????????# ############ ###??????????????? | | ?????????# ##@"T" % #??????????????? | | ?????????# ##s%*o "" +??????????????? | | ?????????# "T" ##s*[ """ #??????????????? | | ?????????+ #sY= """ #??????????????? | | ?????????# /k ! """ #??????????????? | | ?????????# # %=""" #??????????????? | | ?????????# # s * #??????????????? | | ??######## ! # #??????????????? | | ??# [+ ###########??????????????? | | ??# """ %# ??????????????????? | | ??# "Y"%=# ############??????????????????? | | ??# ### #?????????????????????????????? | | ??# #?# #?????????????????????????????? | | ??# #?# ##????????????????????????????? | | ??###/##### #????????????????????????????? | | ????# #????????????????????????????? | | ????# ## #????????????????????????????? | | ????# #?#+##????????????????????????????? | | ????# #?????????????????????????????????? | | ????# #?????????????????????????????????? | | ????# #?????????????????????????????????? | | ????# #?????????????????????????????????? | | ????# #?????????????????????????????????? | | ????# #?????????????????????????????????? | | ????# #?????????????????????????????????? | +----------------------------------------------------+ Best States ------------- Heat Dissipation 35 Energy Generation 10 Energy Capacity 125 Matter Stores 300 Matter Capacity 300 Sight Range 16 Terrain Scan Density 10 ECM Strength 1 Propulsion Shielding 33 Evasion (%) 53 Item Schematics ----------------- None Robot Schematics ------------------ None Fabricated ------------ Nothing Alien Tech Used ----------------- None Achievements -------------- None Challenges ------------ None Game ------ Seed MatterLinearTriangulator Manual? 0 Play Time 00:08:38 Cumulative 8.8 hours Start 2019.10.22 @ 19:44:26 End 2019.10.22 @ 19:51:08 Sessions 1 Manual Loads 0 Difficulty Rogue Special Mode None Game No. 20 Rogue 20 Adventurer 0 Explorer 0 Win Type - Total 0 Types 0/0/0/0/0/0/0 Lore% 29 Gallery% 23 Achievement% 22 Wizard Run 0 Options --------- ASCII 0 Keyboard 0 Movement Numpad Keybinds 0 Fullscreen 2 Font 24/Smallcaps Map View 76x50 Tactical HUD 1 Map Filters NONE Filters NONE Steam 1 RUN: 775cdd10-091c-4107-8991-a4f861d0d44e